[Event "GrandPrix_29.05"]
[Site "Chess.com"]
[Date "2020.05.29"]
[Round "3"]
[White "Borisss85"]
[Black "AmilAbbasov"]
[Result "0-1"]
[WhiteElo "1933"]
[BlackElo "2236"]
[TimeControl "600+2"]
[EndTime "10:30:00 PDT"]
[Termination "AmilAbbasov won on time"]

1. e4 {[%clk 0:09:58.7]} 1... c5 {[%clk 0:10:00.9]} 2. Nf3 {[%clk 0:09:58.9]}
2... Nc6 {[%clk 0:10:01.9]} 3. d4 {[%clk 0:10:00.2]} 3... cxd4 {[%clk
0:10:02.8]} 4. Nxd4 {[%clk 0:10:01.7]} 4... g6 {[%clk 0:10:03.8]} 5. c4 {[%clk
0:10:00.6]} 5... Bg7 {[%clk 0:10:04.4]} 6. Nc2 {[%clk 0:10:01]} 6... Nf6 {[%clk
0:10:04.3]} 7. Nc3 {[%clk 0:10:01.3]} 7... O-O {[%clk 0:10:04.7]} 8. Be2 {[%clk
0:10:01.1]} 8... d6 {[%clk 0:10:02.8]} 9. O-O {[%clk 0:10:00.2]} 9... Be6 {[%clk
0:09:53.6]} 10. Be3 {[%clk 0:09:59.4]} 10... Na5 {[%clk 0:09:40.7]} 11. b3
{[%clk 0:09:56.4]} 11... a6 {[%clk 0:09:31.4]} 12. Nd4 {[%clk 0:09:44.7]} 12...
Bd7 {[%clk 0:09:27.6]} 13. f4 {[%clk 0:09:30.5]} 13... Nc6 {[%clk 0:09:24.2]}
14. Bf3 {[%clk 0:09:28.8]} 14... Nxd4 {[%clk 0:09:22.8]} 15. Bxd4 {[%clk
0:09:29.7]} 15... Bc6 {[%clk 0:09:24.1]} 16. a4 {[%clk 0:09:20.7]} 16... Nd7
{[%clk 0:09:21.6]} 17. a5 {[%clk 0:09:17]} 17... e5 {[%clk 0:08:00.8]} 18. fxe5
{[%clk 0:09:13.5]} 18... Nxe5 {[%clk 0:08:02.7]} 19. Nd5 {[%clk 0:08:46.2]}
19... Bxd5 {[%clk 0:07:47.5]} 20. exd5 {[%clk 0:08:46.1]} 20... Qf6 {[%clk
0:07:37.8]} 21. Kh1 {[%clk 0:08:41]} 21... Qh4 {[%clk 0:07:31.5]} 22. Bf2 {[%clk
0:07:57.2]} 22... Qg5 {[%clk 0:07:27.1]} 23. Rb1 {[%clk 0:07:42.6]} 23... Rac8
{[%clk 0:07:16.4]} 24. Bg3 {[%clk 0:07:12.3]} 24... f5 {[%clk 0:07:07.2]} 25.
Qe1 {[%clk 0:07:03.2]} 25... Nxf3 {[%clk 0:06:22.2]} 26. Rxf3 {[%clk 0:06:46.4]}
26... Rfe8 {[%clk 0:06:22.4]} 27. Qb4 {[%clk 0:06:42.3]} 27... Be5 {[%clk
0:05:37.1]} 28. Bxe5 {[%clk 0:06:15.8]} 28... dxe5 {[%clk 0:03:45.6]} 29. d6
{[%clk 0:06:14.3]} 29... Rcd8 {[%clk 0:03:35.7]} 30. c5 {[%clk 0:06:08.6]} 30...
Rd7 {[%clk 0:03:28.1]} 31. Qc4+ {[%clk 0:06:03.6]} 31... Kg7 {[%clk 0:03:24.3]}
32. Qa4 {[%clk 0:04:41]} 32... Qd8 {[%clk 0:03:01.7]} 33. Re1 {[%clk 0:04:35.6]}
33... Qc8 {[%clk 0:02:13.7]} 34. b4 {[%clk 0:04:20.7]} 34... e4 {[%clk
0:02:06.1]} 35. Qa1+ {[%clk 0:04:12.4]} 35... Kg8 {[%clk 0:02:06]} 36. Rf4
{[%clk 0:04:05]} 36... Rf7 {[%clk 0:01:46.4]} 37. g4 {[%clk 0:03:11.4]} 37... e3
{[%clk 0:00:45.9]} 38. Qd4 {[%clk 0:02:59.4]} 38... e2 {[%clk 0:00:37.7]} 39.
Kg1 {[%clk 0:02:31.7]} 39... Qe6 {[%clk 0:00:25.1]} 40. gxf5 {[%clk 0:02:02.2]}
40... Rxf5 {[%clk 0:00:21.5]} 41. Rxf5 {[%clk 0:01:53.6]} 41... gxf5 {[%clk
0:00:17.3]} 42. Kf2 {[%clk 0:01:48.6]} 42... Kf7 {[%clk 0:00:15.4]} 43. Qd3
{[%clk 0:01:23]} 43... Qe5 {[%clk 0:00:08.8]} 44. Rxe2 {[%clk 0:00:52.6]} 44...
Qxh2+ {[%clk 0:00:09.1]} 45. Ke1 {[%clk 0:00:53.4]} 45... Qxe2+ {[%clk
0:00:04.8]} 46. Qxe2 {[%clk 0:00:53.6]} 46... Rxe2+ {[%clk 0:00:06.7]} 47. Kxe2
{[%clk 0:00:54]} 47... Ke6 {[%clk 0:00:08.6]} 48. Kf3 {[%clk 0:00:50.4]} 48...
h5 {[%clk 0:00:09.1]} 49. Kg3 {[%clk 0:00:50]} 49... Kd7 {[%clk 0:00:09.8]} 50.
Kf3 {[%clk 0:00:42.3]} 50... h4 {[%clk 0:00:10.4]} 51. Kf4 {[%clk 0:00:42.6]}
51... Kc6 {[%clk 0:00:06.9]} 52. Kxf5 {[%clk 0:00:10]} 52... h3 {[%clk
0:00:07.3]} 53. Ke6 {[%clk 0:00:11.1]} 53... h2 {[%clk 0:00:08]} 54. d7 {[%clk
0:00:12.3]} 54... h1=Q {[%clk 0:00:07.8]} 55. d8=Q {[%clk 0:00:12.8]} 55... Qe4+
{[%clk 0:00:08.7]} 56. Kf7 {[%clk 0:00:12.1]} 56... Qxb4 {[%clk 0:00:07.2]} 57.
Qd6+ {[%clk 0:00:10.6]} 57... Kb5 {[%clk 0:00:07.7]} 58. Qb6+ {[%clk 0:00:08.5]}
58... Ka4 {[%clk 0:00:08.7]} 59. c6 {[%clk 0:00:06.6]} 59... Qc4+ {[%clk
0:00:06.2]} 60. Ke7 {[%clk 0:00:06.8]} 60... Qxc6 {[%clk 0:00:07.1]} 61. Qb1
{[%clk 0:00:07.1]} 61... Kxa5 {[%clk 0:00:08]} 62. Qe1+ {[%clk 0:00:06.1]} 62...
Kb6 {[%clk 0:00:08.7]} 63. Qb1+ {[%clk 0:00:06.3]} 63... Qb5 {[%clk 0:00:09.9]}
64. Qa1 {[%clk 0:00:06.8]} 64... Qb4+ {[%clk 0:00:10]} 65. Kd7 {[%clk
0:00:07.5]} 65... Qb5+ {[%clk 0:00:09.9]} 66. Kd6 {[%clk 0:00:07.3]} 66... Qc5+
{[%clk 0:00:10.7]} 67. Ke6 {[%clk 0:00:08]} 67... a5 {[%clk 0:00:12]} 68. Qb1+
{[%clk 0:00:07.8]} 68... Qb4 {[%clk 0:00:13]} 69. Qg1+ {[%clk 0:00:08.2]} 69...
Kb5 {[%clk 0:00:12.7]} 70. Qg5+ {[%clk 0:00:08.9]} 70... Qc5 {[%clk 0:00:13.4]}
71. Qd2 {[%clk 0:00:07.5]} 71... a4 {[%clk 0:00:10.8]} 72. Qb2+ {[%clk
0:00:03.2]} 72... Qb4 {[%clk 0:00:11.7]} 73. Qe5+ {[%clk 0:00:04]} 73... Ka6
{[%clk 0:00:11.4]} 0-1

[Event "GrandPrix_29.05"]
[Site "Chess.com"]
[Date "2020.05.29"]
[Round "3"]
[White "SuperFineHipster"]
[Black "AliKa2810"]
[Result "1-0"]
[WhiteElo "2132"]
[BlackElo "2096"]
[TimeControl "600+2"]
[EndTime "10:30:08 PDT"]
[Termination "SuperFineHipster won on time"]

1. Nf3 {[%clk 0:10:01.9]} 1... Nf6 {[%clk 0:10:00.3]} 2. d4 {[%clk 0:09:59.6]}
2... g6 {[%clk 0:10:00.1]} 3. c4 {[%clk 0:09:58]} 3... Bg7 {[%clk 0:10:01.2]} 4.
Nc3 {[%clk 0:09:58.1]} 4... O-O {[%clk 0:10:01]} 5. e4 {[%clk 0:09:58.9]} 5...
d6 {[%clk 0:10:01.3]} 6. Be2 {[%clk 0:10:00.2]} 6... e5 {[%clk 0:09:58.9]} 7. d5
{[%clk 0:10:01.3]} 7... a5 {[%clk 0:09:58.4]} 8. Bg5 {[%clk 0:10:01.5]} 8... Na6
{[%clk 0:09:57.3]} 9. Nd2 {[%clk 0:10:00.9]} 9... Nc5 {[%clk 0:09:57.7]} 10. O-O
{[%clk 0:09:48.7]} 10... h6 {[%clk 0:09:50.6]} 11. Be3 {[%clk 0:09:49.2]} 11...
Ne8 {[%clk 0:09:47.7]} 12. a3 {[%clk 0:09:49.3]} 12... f5 {[%clk 0:09:34.8]} 13.
f3 {[%clk 0:09:50.3]} 13... f4 {[%clk 0:08:13.4]} 14. Bf2 {[%clk 0:09:51.4]}
14... h5 {[%clk 0:08:14.9]} 15. b4 {[%clk 0:09:48.9]} 15... Na6 {[%clk
0:08:15.2]} 16. c5 {[%clk 0:09:46.3]} 16... g5 {[%clk 0:08:09.4]} 17. Nc4 {[%clk
0:09:34.5]} 17... Rf7 {[%clk 0:07:28.4]} 18. Nxa5 {[%clk 0:09:12]} 18... Nxc5
{[%clk 0:06:56.6]} 19. Nc6 {[%clk 0:09:04.8]} 19... bxc6 {[%clk 0:06:56.7]} 20.
bxc5 {[%clk 0:09:06]} 20... cxd5 {[%clk 0:06:30.8]} 21. Qxd5 {[%clk 0:08:57]}
21... Ba6 {[%clk 0:06:32.2]} 22. Nb5 {[%clk 0:08:47.3]} 22... Nf6 {[%clk
0:06:13]} 23. Qd1 {[%clk 0:07:25.2]} 23... d5 {[%clk 0:06:03.1]} 24. exd5 {[%clk
0:06:52.3]} 24... Nxd5 {[%clk 0:06:02.9]} 25. c6 {[%clk 0:06:34.3]} 25... Kh8
{[%clk 0:04:58.6]} 26. a4 {[%clk 0:06:27.8]} 26... e4 {[%clk 0:04:22.5]} 27.
fxe4 {[%clk 0:06:23.7]} 27... Nc3 {[%clk 0:04:20.2]} 28. Qxd8+ {[%clk 0:04:49]}
28... Rxd8 {[%clk 0:04:22.1]} 29. Nxc3 {[%clk 0:04:49.8]} 29... Bxe2 {[%clk
0:04:10.5]} 30. Nxe2 {[%clk 0:04:51.7]} 30... Bxa1 {[%clk 0:04:09.5]} 31. Rxa1
{[%clk 0:04:53.6]} 31... Re7 {[%clk 0:02:53]} 32. Nc3 {[%clk 0:04:49.6]} 32...
Re6 {[%clk 0:02:53.7]} 33. Nd5 {[%clk 0:02:15]} 33... Rxc6 {[%clk 0:02:54.1]}
34. a5 {[%clk 0:02:12.8]} 34... Ra8 {[%clk 0:02:52.7]} 35. e5 {[%clk 0:01:38.4]}
35... Rxa5 {[%clk 0:01:28.8]} 36. Rxa5 {[%clk 0:01:37.6]} 36... Rc1+ {[%clk
0:01:29.9]} 37. Be1 {[%clk 0:01:39.1]} 37... Rxe1+ {[%clk 0:01:31.5]} 38. Kf2
{[%clk 0:01:40.7]} 38... Rxe5 {[%clk 0:01:33.2]} 39. Ra8+ {[%clk 0:01:41.5]}
39... Kg7 {[%clk 0:01:33.4]} 40. Nxc7 {[%clk 0:01:42.1]} 40... Re7 {[%clk
0:01:25.5]} 41. Ne8+ {[%clk 0:01:35.9]} 41... Kf7 {[%clk 0:01:15.4]} 42. Nd6+
{[%clk 0:01:35.7]} 42... Ke6 {[%clk 0:01:15.8]} 43. Ne4 {[%clk 0:01:32]} 43...
Kf5 {[%clk 0:01:13.4]} 44. Nd2 {[%clk 0:01:32.7]} 44... g4 {[%clk 0:01:02]} 45.
Ra5+ {[%clk 0:01:30.1]} 45... Kg6 {[%clk 0:01:02.3]} 46. h4 {[%clk 0:01:18.8]}
46... Rb7 {[%clk 0:00:42]} 47. Rg5+ {[%clk 0:01:17.3]} 47... Kh6 {[%clk
0:00:43.5]} 48. Rf5 {[%clk 0:01:15.6]} 48... Rb2 {[%clk 0:00:43.7]} 49. Ke2
{[%clk 0:01:11.8]} 49... Rb4 {[%clk 0:00:41.5]} 50. Kd3 {[%clk 0:01:06.6]} 50...
Kg6 {[%clk 0:00:41.3]} 51. Rg5+ {[%clk 0:01:06.4]} 51... Kh6 {[%clk 0:00:42.7]}
52. Rg8 {[%clk 0:00:58.6]} 52... Kh7 {[%clk 0:00:36.9]} 53. Re8 {[%clk
0:00:55.9]} 53... Rb6 {[%clk 0:00:19.7]} 54. Re4 {[%clk 0:00:44.8]} 54... Rd6+
{[%clk 0:00:20.2]} 55. Ke2 {[%clk 0:00:45.1]} 55... Rf6 {[%clk 0:00:21.6]} 56.
Re7+ {[%clk 0:00:45.6]} 56... Kg6 {[%clk 0:00:21.6]} 57. Ne4 {[%clk 0:00:45.8]}
57... Ra6 {[%clk 0:00:22.5]} 58. Ng5 {[%clk 0:00:35.2]} 58... Ra2+ {[%clk
0:00:20.9]} 59. Kf1 {[%clk 0:00:35.2]} 59... Ra1+ {[%clk 0:00:20.7]} 60. Re1
{[%clk 0:00:34.2]} 60... Ra2 {[%clk 0:00:14.2]} 61. Ne6 {[%clk 0:00:32.4]} 61...
Kf5 {[%clk 0:00:14.9]} 62. Nd4+ {[%clk 0:00:33.5]} 62... Kg6 {[%clk 0:00:11.3]}
63. Re6+ {[%clk 0:00:33.6]} 63... Kg7 {[%clk 0:00:06.4]} 64. Re4 {[%clk
0:00:30.5]} 64... Ra1+ {[%clk 0:00:05.5]} 65. Kf2 {[%clk 0:00:30.2]} 65... Ra2+
{[%clk 0:00:04.1]} 66. Ne2 {[%clk 0:00:29.8]} 66... f3 {[%clk 0:00:04.8]} 67.
gxf3 {[%clk 0:00:30.7]} 67... gxf3 {[%clk 0:00:06.2]} 68. Kxf3 {[%clk
0:00:31.9]} 68... Ra3+ {[%clk 0:00:07.4]} 69. Re3 {[%clk 0:00:30.4]} 69... Ra4
{[%clk 0:00:08.7]} 70. Nf4 {[%clk 0:00:32]} 70... Kh6 {[%clk 0:00:09.1]} 71.
Re6+ {[%clk 0:00:32.7]} 71... Kh7 {[%clk 0:00:10.5]} 72. Re5 {[%clk 0:00:33.1]}
72... Ra3+ {[%clk 0:00:09.1]} 73. Ke4 {[%clk 0:00:33.2]} 73... Ra4+ {[%clk
0:00:10.1]} 74. Kf5 {[%clk 0:00:34.4]} 74... Kh6 {[%clk 0:00:09.9]} 75. Re6+
{[%clk 0:00:35.6]} 75... Kh7 {[%clk 0:00:11.3]} 76. Rd6 {[%clk 0:00:26.4]} 76...
Rb4 {[%clk 0:00:10.5]} 77. Kg5 {[%clk 0:00:26.9]} 77... Rb5+ {[%clk 0:00:08.8]}
78. Rd5 {[%clk 0:00:28.2]} 78... Rb4 {[%clk 0:00:09.1]} 79. Nxh5 {[%clk
0:00:28.8]} 79... Ra4 {[%clk 0:00:08.4]} 80. Nf6+ {[%clk 0:00:29.7]} 80... Kg7
{[%clk 0:00:09.4]} 81. Rd7+ {[%clk 0:00:28]} 81... Kf8 {[%clk 0:00:10.4]} 82.
Kg6 {[%clk 0:00:24.9]} 1-0

[Event "GrandPrix_29.05"]
[Site "Chess.com"]
[Date "2020.05.29"]
[Round "3"]
[White "Vesper2018"]
[Black "Petriashvili02"]
[Result "0-1"]
[WhiteElo "1777"]
[BlackElo "2201"]
[TimeControl "600+2"]
[EndTime "10:30:12 PDT"]
[Termination "Petriashvili02 won by resignation"]

1. e4 {[%clk 0:09:59.4]} 1... c6 {[%clk 0:09:55]} 2. d4 {[%clk 0:09:59.4]} 2...
d5 {[%clk 0:09:56.5]} 3. e5 {[%clk 0:10:00.5]} 3... Bf5 {[%clk 0:09:57.2]} 4.
Nf3 {[%clk 0:10:00.6]} 4... e6 {[%clk 0:09:56.6]} 5. Be2 {[%clk 0:10:00.8]} 5...
Nh6 {[%clk 0:09:53.9]} 6. O-O {[%clk 0:09:57.3]} 6... Be7 {[%clk 0:09:53.7]} 7.
Nbd2 {[%clk 0:09:16.2]} 7... Bg6 {[%clk 0:09:45.4]} 8. c3 {[%clk 0:09:12.8]}
8... O-O {[%clk 0:09:44.3]} 9. Nb3 {[%clk 0:09:00.8]} 9... Nd7 {[%clk
0:09:45.3]} 10. a4 {[%clk 0:08:52.2]} 10... c5 {[%clk 0:09:45.3]} 11. dxc5
{[%clk 0:08:17.4]} 11... Nxc5 {[%clk 0:09:47.2]} 12. Nxc5 {[%clk 0:08:15.2]}
12... Bxc5 {[%clk 0:09:49.1]} 13. Bxh6 {[%clk 0:07:53.2]} 13... gxh6 {[%clk
0:09:51]} 14. Nd4 {[%clk 0:07:54.4]} 14... Qb6 {[%clk 0:09:23.7]} 15. Qd2 {[%clk
0:06:59.3]} 15... Bxd4 {[%clk 0:09:21.7]} 16. cxd4 {[%clk 0:07:00.1]} 16... Rfc8
{[%clk 0:09:17.7]} 17. Rfc1 {[%clk 0:07:00.1]} 17... a5 {[%clk 0:07:22.7]} 18.
Bb5 {[%clk 0:06:45.6]} 18... Kg7 {[%clk 0:07:23.1]} 19. Rc3 {[%clk 0:06:20.7]}
19... Qd8 {[%clk 0:06:44.3]} 20. Rac1 {[%clk 0:06:16.8]} 20... b6 {[%clk
0:05:36]} 21. Qf4 {[%clk 0:05:35.2]} 21... Rxc3 {[%clk 0:04:46.1]} 22. Rxc3
{[%clk 0:05:34.7]} 22... Qe7 {[%clk 0:04:43.6]} 23. h4 {[%clk 0:03:47]} 23... h5
{[%clk 0:04:29.5]} 24. Kh2 {[%clk 0:02:20.8]} 24... Rf8 {[%clk 0:03:49.9]} 25.
Rc6 {[%clk 0:01:56]} 25... Qb4 {[%clk 0:03:17.1]} 26. Rxb6 {[%clk 0:01:49.5]}
26... Qxb2 {[%clk 0:03:18.3]} 27. Rc6 {[%clk 0:01:39.3]} 27... Qb1 {[%clk
0:03:12.7]} 28. Rc7 {[%clk 0:01:33.4]} 28... Kg8 {[%clk 0:02:50.9]} 29. Qd2
{[%clk 0:01:15.6]} 29... Qe4 {[%clk 0:02:46.4]} 30. g3 {[%clk 0:01:04.9]} 30...
Qg4 {[%clk 0:02:12.5]} 31. Be2 {[%clk 0:00:59]} 31... Qe4 {[%clk 0:02:10.3]} 32.
f3 {[%clk 0:00:49]} 32... Qb1 {[%clk 0:02:08.3]} 33. Bb5 {[%clk 0:00:47.6]}
33... Bf5 {[%clk 0:01:53.3]} 34. Qg5+ {[%clk 0:00:26.6]} 34... Bg6 {[%clk
0:01:54.1]} 35. Qd2 {[%clk 0:00:26.6]} 35... Ra8 {[%clk 0:01:53.1]} 36. g4
{[%clk 0:00:18.9]} 36... hxg4 {[%clk 0:01:52.1]} 37. fxg4 {[%clk 0:00:20.3]}
37... h6 {[%clk 0:01:25.6]} 38. Rc1 {[%clk 0:00:19.2]} 38... Qb4 {[%clk
0:01:03.4]} 39. Qf2 {[%clk 0:00:13.1]} 39... Qa3 {[%clk 0:01:01]} 40. Qd2 {[%clk
0:00:09.8]} 40... Qf3 {[%clk 0:00:59]} 41. g5 {[%clk 0:00:04.5]} 41... Qg4
{[%clk 0:00:32.6]} 42. Qf2 {[%clk 0:00:04.2]} 42... hxg5 {[%clk 0:00:33.3]} 43.
hxg5 {[%clk 0:00:04.9]} 43... Bf5 {[%clk 0:00:32.4]} 44. Qg3 {[%clk 0:00:05.2]}
44... Qh5+ {[%clk 0:00:33.6]} 45. Kg1 {[%clk 0:00:05.6]} 45... Kg7 {[%clk
0:00:28.2]} 46. Kf2 {[%clk 0:00:04.9]} 46... Rh8 {[%clk 0:00:29]} 47. Rg1 {[%clk
0:00:05]} 47... Be4 {[%clk 0:00:22.4]} 48. Qf4 {[%clk 0:00:06.2]} 48... Qh2+
{[%clk 0:00:23.4]} 49. Qxh2 {[%clk 0:00:07.1]} 49... Rxh2+ {[%clk 0:00:25.3]}
50. Ke3 {[%clk 0:00:08.5]} 50... Rh3+ {[%clk 0:00:26.3]} 51. Kd2 {[%clk
0:00:09.2]} 51... Rb3 {[%clk 0:00:26.2]} 52. Rf1 {[%clk 0:00:07.9]} 52... Rb4
{[%clk 0:00:27]} 53. Kc3 {[%clk 0:00:08.5]} 53... Bf5 {[%clk 0:00:25.4]} 54. Rg1
{[%clk 0:00:04.6]} 54... Kg6 {[%clk 0:00:26.7]} 55. Rg2 {[%clk 0:00:03.7]} 55...
Be4 {[%clk 0:00:27.2]} 56. Rf2 {[%clk 0:00:04.4]} 56... Bf5 {[%clk 0:00:28.8]}
57. Rg2 {[%clk 0:00:05.5]} 57... Rb1 {[%clk 0:00:30]} 58. Rg3 {[%clk 0:00:05.9]}
58... Rc1+ {[%clk 0:00:31]} 59. Kb2 {[%clk 0:00:06.9]} 59... Rc2+ {[%clk
0:00:32.1]} 60. Kb3 {[%clk 0:00:08.3]} 60... Rd2 {[%clk 0:00:30.2]} 61. Kc3
{[%clk 0:00:07.5]} 61... Rf2 {[%clk 0:00:31.5]} 62. Be8 {[%clk 0:00:07.8]} 62...
Rc2+ {[%clk 0:00:27.4]} 63. Kb3 {[%clk 0:00:08.8]} 63... Rc8 {[%clk 0:00:28.6]}
64. Bb5 {[%clk 0:00:09.2]} 64... Bc2+ {[%clk 0:00:28.4]} 65. Kb2 {[%clk
0:00:10.2]} 65... Be4 {[%clk 0:00:29.8]} 66. Kb3 {[%clk 0:00:10.9]} 66... Rh8
{[%clk 0:00:30.9]} 67. Be2 {[%clk 0:00:07]} 67... Rh4 {[%clk 0:00:29.5]} 68. Bb5
{[%clk 0:00:04.2]} 68... Bf5 {[%clk 0:00:29.4]} 69. Kc3 {[%clk 0:00:04]} 69...
Rh5 {[%clk 0:00:26.6]} 70. Be8 {[%clk 0:00:04.6]} 70... Rh1 {[%clk 0:00:27]} 71.
Bd7 {[%clk 0:00:05.6]} 71... Rc1+ {[%clk 0:00:26]} 72. Kb2 {[%clk 0:00:06.8]}
72... Rc4 {[%clk 0:00:26.1]} 73. Rc3 {[%clk 0:00:03.9]} 73... Rxd4 {[%clk
0:00:27.6]} 74. Rc5 {[%clk 0:00:05]} 74... Re4 {[%clk 0:00:26.7]} 75. Rxa5
{[%clk 0:00:05.8]} 75... Rxe5 {[%clk 0:00:28.4]} 76. Ra8 {[%clk 0:00:07]} 76...
d4 {[%clk 0:00:29.4]} 77. a5 {[%clk 0:00:07.9]} 77... d3 {[%clk 0:00:29.3]} 78.
Kc3 {[%clk 0:00:06.4]} 78... Rc5+ {[%clk 0:00:30.2]} 79. Kd2 {[%clk 0:00:06.8]}
79... Rc2+ {[%clk 0:00:31.7]} 80. Ke3 {[%clk 0:00:02.8]} 80... Re2+ {[%clk
0:00:32.4]} 81. Kf3 {[%clk 0:00:03.5]} 81... Be4+ {[%clk 0:00:33.7]} 0-1

[Event "GrandPrix_29.05"]
[Site "Chess.com"]
[Date "2020.05.29"]
[Round "3"]
[White "GadimbayliA"]
[Black "Tesla37"]
[Result "0-1"]
[WhiteElo "2523"]
[BlackElo "2806"]
[TimeControl "600+2"]
[EndTime "10:30:16 PDT"]
[Termination "Tesla37 won by resignation"]

1. e4 {[%clk 0:10:01.9]} 1... Nf6 {[%clk 0:09:59.5]} 2. e5 {[%clk 0:10:03.1]}
2... Nd5 {[%clk 0:10:00.2]} 3. d4 {[%clk 0:10:04]} 3... d6 {[%clk 0:10:01.1]} 4.
Nf3 {[%clk 0:10:05.2]} 4... dxe5 {[%clk 0:10:02]} 5. Nxe5 {[%clk 0:10:07.1]}
5... c6 {[%clk 0:10:03.3]} 6. c3 {[%clk 0:09:42.8]} 6... Nd7 {[%clk 0:09:53.3]}
7. Nxd7 {[%clk 0:09:41]} 7... Bxd7 {[%clk 0:09:52.7]} 8. Bd3 {[%clk 0:09:42.1]}
8... g6 {[%clk 0:09:51.4]} 9. O-O {[%clk 0:09:40.1]} 9... Bg7 {[%clk 0:09:52]}
10. Nd2 {[%clk 0:09:40.5]} 10... O-O {[%clk 0:09:50.8]} 11. Nf3 {[%clk
0:09:41.4]} 11... Bg4 {[%clk 0:09:45.1]} 12. h3 {[%clk 0:09:41]} 12... Bxf3
{[%clk 0:09:45.5]} 13. Qxf3 {[%clk 0:09:42.9]} 13... e6 {[%clk 0:09:39.7]} 14.
Bd2 {[%clk 0:09:35.3]} 14... Qb6 {[%clk 0:09:34.9]} 15. Rab1 {[%clk 0:09:18.5]}
15... Rad8 {[%clk 0:09:18.1]} 16. Rfd1 {[%clk 0:08:20.9]} 16... Rd7 {[%clk
0:09:09.9]} 17. Bc4 {[%clk 0:07:53]} 17... h6 {[%clk 0:08:52.3]} 18. Qg4 {[%clk
0:06:13.5]} 18... Rfd8 {[%clk 0:07:55.8]} 19. Qh4 {[%clk 0:06:10.3]} 19... Ne7
{[%clk 0:07:52.6]} 20. Bb3 {[%clk 0:03:20.9]} 20... Nf5 {[%clk 0:07:17.4]} 21.
Qg4 {[%clk 0:03:20.8]} 21... c5 {[%clk 0:06:26.4]} 22. dxc5 {[%clk 0:03:10.6]}
22... Qxc5 {[%clk 0:06:26.9]} 23. Be1 {[%clk 0:03:11.4]} 23... h5 {[%clk
0:06:18.7]} 24. Qf3 {[%clk 0:03:07.2]} 24... Be5 {[%clk 0:06:13]} 25. Rxd7
{[%clk 0:02:35.9]} 25... Rxd7 {[%clk 0:06:12.7]} 26. Bc2 {[%clk 0:01:47.5]}
26... Ne7 {[%clk 0:05:08.8]} 27. Rd1 {[%clk 0:01:45.1]} 27... Rxd1 {[%clk
0:05:08.2]} 28. Bxd1 {[%clk 0:01:44]} 28... Nd5 {[%clk 0:04:52.6]} 29. Bb3
{[%clk 0:01:41.9]} 29... b5 {[%clk 0:04:48.6]} 30. Bd2 {[%clk 0:01:33.9]} 30...
Kg7 {[%clk 0:04:39.7]} 31. Bxd5 {[%clk 0:00:57.7]} 31... exd5 {[%clk 0:04:17]}
32. Qd3 {[%clk 0:00:39.3]} 32... a6 {[%clk 0:03:59.9]} 33. Be3 {[%clk
0:00:38.2]} 33... Qc4 {[%clk 0:03:54.9]} 34. Qxc4 {[%clk 0:00:37.9]} 34... dxc4
{[%clk 0:03:50.7]} 35. Kf1 {[%clk 0:00:39]} 35... Kf6 {[%clk 0:03:50.8]} 36. Ke2
{[%clk 0:00:39]} 36... Ke6 {[%clk 0:03:51.8]} 37. g4 {[%clk 0:00:29.5]} 37... f5
{[%clk 0:03:42.1]} 38. f3 {[%clk 0:00:11.5]} 38... Kd5 {[%clk 0:03:41.4]} 39.
gxh5 {[%clk 0:00:12]} 39... gxh5 {[%clk 0:03:41.4]} 40. a3 {[%clk 0:00:10]}
40... Bd6 {[%clk 0:03:26.1]} 41. Kf1 {[%clk 0:00:09.5]} 41... Bc7 {[%clk
0:03:23.2]} 42. Ke2 {[%clk 0:00:10.2]} 42... a5 {[%clk 0:03:21.8]} 43. Kd1
{[%clk 0:00:11]} 43... Ke5 {[%clk 0:03:03.3]} 44. Ke2 {[%clk 0:00:09.9]} 44...
Kd5 {[%clk 0:02:51.5]} 45. Kd1 {[%clk 0:00:10.5]} 45... Kc6 {[%clk 0:02:35.4]}
46. Ke2 {[%clk 0:00:11]} 46... Be5 {[%clk 0:02:35]} 47. Kd1 {[%clk 0:00:09]}
47... b4 {[%clk 0:02:33.6]} 48. axb4 {[%clk 0:00:04.5]} 48... axb4 {[%clk
0:02:34.1]} 49. Kc2 {[%clk 0:00:04.7]} 49... b3+ {[%clk 0:02:13.3]} 50. Kd1
{[%clk 0:00:04.1]} 50... Kd5 {[%clk 0:02:13.8]} 51. Kd2 {[%clk 0:00:03.6]} 51...
Bd6 {[%clk 0:02:05.6]} 52. Kd1 {[%clk 0:00:04.3]} 52... Bc7 {[%clk 0:01:59.8]}
53. Kd2 {[%clk 0:00:04.8]} 53... Ke5 {[%clk 0:01:56.1]} 54. Ke2 {[%clk
0:00:05.3]} 54... Bd6 {[%clk 0:01:54.3]} 55. Kd2 {[%clk 0:00:03.9]} 55... Ke6
{[%clk 0:01:46.8]} 56. Kd1 {[%clk 0:00:04.1]} 56... Be5 {[%clk 0:01:46.4]} 57.
Kd2 {[%clk 0:00:04.8]} 57... Kd5 {[%clk 0:01:41.4]} 58. Kd1 {[%clk 0:00:05.3]}
58... Bf6 {[%clk 0:01:38.8]} 59. Kd2 {[%clk 0:00:05.7]} 59... Bh4 {[%clk
0:01:24.7]} 60. Ke2 {[%clk 0:00:05.6]} 60... Bg3 {[%clk 0:01:23.7]} 61. Kd2
{[%clk 0:00:04.6]} 61... Ke6 {[%clk 0:01:20.3]} 62. Ke2 {[%clk 0:00:06]} 62...
f4 {[%clk 0:01:16.9]} 63. Bd4 {[%clk 0:00:04.9]} 63... Kf5 {[%clk 0:01:17.3]}
64. Bc5 {[%clk 0:00:05.4]} 64... Bh4 {[%clk 0:01:14.1]} 65. Bd4 {[%clk 0:00:05]}
65... Be7 {[%clk 0:01:12.6]} 66. Bf2 {[%clk 0:00:06.1]} 66... Ba3 {[%clk
0:01:09.4]} 67. Kd2 {[%clk 0:00:02.6]} 67... Bxb2 {[%clk 0:01:09.5]} 68. Bc5
{[%clk 0:00:03.9]} 68... Ke5 {[%clk 0:01:07.9]} 69. Bb4 {[%clk 0:00:04.3]} 69...
Kd5 {[%clk 0:01:08]} 70. Be7 {[%clk 0:00:05]} 70... Ba1 {[%clk 0:01:05.9]} 71.
Bb4 {[%clk 0:00:05.3]} 71... Bb2 {[%clk 0:01:03.7]} 72. Be7 {[%clk 0:00:06.1]}
72... Ke6 {[%clk 0:00:56.9]} 73. Bb4 {[%clk 0:00:07.1]} 73... Kf6 {[%clk
0:00:55.8]} 74. Kd1 {[%clk 0:00:04.9]} 74... Kg5 {[%clk 0:00:45.7]} 75. Be7+
{[%clk 0:00:05.4]} 75... Kf5 {[%clk 0:00:46.7]} 76. Bb4 {[%clk 0:00:06.8]} 76...
Ke5 {[%clk 0:00:47.2]} 77. Kd2 {[%clk 0:00:07.8]} 77... Ke6 {[%clk 0:00:45.3]}
78. Kd1 {[%clk 0:00:05.7]} 78... Kd5 {[%clk 0:00:44.6]} 79. Kd2 {[%clk
0:00:06.8]} 79... Kc6 {[%clk 0:00:42.4]} 80. Be7 {[%clk 0:00:07.5]} 80... Kb5
{[%clk 0:00:40.5]} 81. Bd6 {[%clk 0:00:08.3]} 81... Ka4 {[%clk 0:00:40.3]} 82.
Bxf4 {[%clk 0:00:07.6]} 82... Ka3 {[%clk 0:00:37.8]} 83. Be5 {[%clk 0:00:03]}
83... Ka2 {[%clk 0:00:38.2]} 84. f4 {[%clk 0:00:04.7]} 84... Ba3 {[%clk
0:00:38.8]} 0-1